[Event "Titled Tuesday Blitz July 25 Late 2023"]
[White "Graif, William"]
[Black "Olsson, William"]
[WhiteFideId "2609835"]
[BlackFideId "1741721"]
[WhiteElo "2551"]
[BlackElo "2444"]
[Result "1/2-1/2"]
[Round "7"]
[TimeControl "180+2"]
[Date "2023.07.25"]
[WhiteClock "0:00:08"]
[BlackClock "0:00:10"]
[Board "78"]

1. e4 {[%clk 0:02:54]}  c5 {[%clk 0:02:59]} 2. Nc3 {[%clk 0:02:53]}  Nc6 {[%clk 0:02:59]} 3. Bb5 {[%clk 0:02:53]}  Nd4 {[%clk 0:02:58]} 4. Nf3 {[%clk 0:02:52]}  g6 {[%clk 0:02:57]} 5. Nxd4 {[%clk 0:02:48]}  cxd4 {[%clk 0:02:58]} 6. Ne2 {[%clk 0:02:49]}  Bg7 {[%clk 0:02:57]} 7. O-O {[%clk 0:02:49]}  a6 {[%clk 0:02:50]} 8. Ba4 {[%clk 0:02:48]}  b5 {[%clk 0:02:44]} 9. Bb3 {[%clk 0:02:47]}  Bb7 {[%clk 0:02:44]} 10. d3 {[%clk 0:02:47]}  d5 {[%clk 0:02:39]} 11. f3 {[%clk 0:02:47]}  e5 {[%clk 0:02:34]} 12. f4 {[%clk 0:02:25]}  Ne7 {[%clk 0:01:16]} 13. fxe5 {[%clk 0:02:22]}  Bxe5 {[%clk 0:01:17]} 14. Bf4 {[%clk 0:02:04]}  Qd6 {[%clk 0:01:17]} 15. Qd2 {[%clk 0:01:56]}  O-O {[%clk 0:01:15]} 16. Ng3 {[%clk 0:01:41]}  dxe4 {[%clk 0:01:08]} 17. Nxe4 {[%clk 0:01:36]}  Bxe4 {[%clk 0:01:05]} 18. Bxe5 {[%clk 0:01:24]}  Qxe5 {[%clk 0:01:01]} 19. Rae1 {[%clk 0:01:23]}  Nf5 {[%clk 0:00:51]} 20. Rxe4 {[%clk 0:01:18]}  Qc5 {[%clk 0:00:49]} 21. Qg5 {[%clk 0:01:14]}  Rae8 {[%clk 0:00:43]} 22. Ref4 {[%clk 0:01:09]}  Re5 {[%clk 0:00:42]} 23. Qf6 {[%clk 0:01:03]}  Qe7 {[%clk 0:00:06]} 24. Qxe7 {[%clk 0:00:51]}  Rxe7 {[%clk 0:00:07]} 25. g4 {[%clk 0:00:51]}  Ne3 {[%clk 0:00:07]} 26. R1f3 {[%clk 0:00:48]}  a5 {[%clk 0:00:07]} 27. Rxd4 {[%clk 0:00:42]}  a4 {[%clk 0:00:08]} 28. Bd5 {[%clk 0:00:39]}  Nxc2 {[%clk 0:00:07]} 29. Re4 {[%clk 0:00:37]}  Rxe4 {[%clk 0:00:03]} 30. dxe4 {[%clk 0:00:38]}  Nb4 {[%clk 0:00:03]} 31. Kf2 {[%clk 0:00:33]}  Nxd5 {[%clk 0:00:02]} 32. exd5 {[%clk 0:00:34]}  Rc8 {[%clk 0:00:02]} 33. Rd3 {[%clk 0:00:25]}  Kf8 {[%clk 0:00:03]} 34. Ke3 {[%clk 0:00:23]}  Ke7 {[%clk 0:00:03]} 35. Rd2 {[%clk 0:00:18]}  Kd6 {[%clk 0:00:02]} 36. Kf4 {[%clk 0:00:19]}  f6 {[%clk 0:00:02]} 37. h3 {[%clk 0:00:14]}  Rc4+ {[%clk 0:00:03]} 38. Kf3 {[%clk 0:00:14]}  Rc5 {[%clk 0:00:03]} 39. Ke4 {[%clk 0:00:14]}  Rc4+ {[%clk 0:00:04]} 40. Ke3 {[%clk 0:00:11]}  f5 {[%clk 0:00:03]} 41. gxf5 {[%clk 0:00:11]}  gxf5 {[%clk 0:00:04]} 42. Rf2 {[%clk 0:00:11]}  Re4+ {[%clk 0:00:03]} 43. Kd3 {[%clk 0:00:11]}  Re5 {[%clk 0:00:04]} 44. Kc3 {[%clk 0:00:10]}  Rxd5 {[%clk 0:00:05]} 45. Rg2 {[%clk 0:00:10]}  Kc5 {[%clk 0:00:05]} 46. Rg7 {[%clk 0:00:11]}  b4+ {[%clk 0:00:05]} 47. Kc2 {[%clk 0:00:11]}  Kd4 {[%clk 0:00:06]} 48. Rxh7 {[%clk 0:00:11]}  f4 {[%clk 0:00:06]} 49. Kd2 {[%clk 0:00:09]}  f3 {[%clk 0:00:05]} 50. Rf7 {[%clk 0:00:09]}  Ke4+ {[%clk 0:00:04]} 51. Ke1 {[%clk 0:00:09]}  Rf5 {[%clk 0:00:04]} 52. Rxf5 {[%clk 0:00:09]}  Kxf5 {[%clk 0:00:05]} 53. Kf2 {[%clk 0:00:10]}  Ke4 {[%clk 0:00:06]} 54. h4 {[%clk 0:00:10]}  Kd3 {[%clk 0:00:05]} 55. h5 {[%clk 0:00:09]}  Kc2 {[%clk 0:00:06]} 56. h6 {[%clk 0:00:09]}  Kxb2 {[%clk 0:00:06]} 57. h7 {[%clk 0:00:10]}  Kxa2 {[%clk 0:00:06]} 58. h8=Q {[%clk 0:00:11]}  b3 {[%clk 0:00:07]} 59. Qd4 {[%clk 0:00:10]}  a3 {[%clk 0:00:06]} 60. Qc4 {[%clk 0:00:10]}  Kb2 {[%clk 0:00:06]} 61. Qd4+ {[%clk 0:00:11]}  Ka2 {[%clk 0:00:05]} 62. Qd5 {[%clk 0:00:08]}  Kb2 {[%clk 0:00:05]} 63. Kxf3 {[%clk 0:00:05]}  a2 {[%clk 0:00:06]} 64. Qd4+ {[%clk 0:00:05]}  Kb1 {[%clk 0:00:06]} 65. Qd3+ {[%clk 0:00:05]}  Kb2 {[%clk 0:00:06]} 66. Qd2+ {[%clk 0:00:06]}  Kb1 {[%clk 0:00:07]} 67. Qd1+ {[%clk 0:00:06]}  Kb2 {[%clk 0:00:07]} 68. Qd4+ {[%clk 0:00:06]}  Kb1 {[%clk 0:00:07]} 69. Qe4+ {[%clk 0:00:07]}  Kb2 {[%clk 0:00:07]} 70. Qe5+ {[%clk 0:00:06]}  Kb1 {[%clk 0:00:08]} 71. Qe4+ {[%clk 0:00:06]}  Kb2 {[%clk 0:00:08]} 72. Qe2+ {[%clk 0:00:06]}  Kb1 {[%clk 0:00:08]} 73. Qd3+ {[%clk 0:00:07]}  Kb2 {[%clk 0:00:09]} 74. Qd2+ {[%clk 0:00:07]}  Kb1 {[%clk 0:00:09]} 75. Qd1+ {[%clk 0:00:08]}  Kb2 {[%clk 0:00:10]} 76. Qd2+ {[%clk 0:00:08]} 1/2-1/2


[Site "https://www.chess.com"]

[Event "Titled Tuesday Blitz July 25 Late 2023"]
[White "Martins, Bruno Andre Leite"]
[Black "Mickiewicz, Piotr"]
[WhiteFideId "1942255"]
[BlackFideId "1114891"]
[WhiteElo "2527"]
[BlackElo "2438"]
[Result "1-0"]
[Round "7"]
[TimeControl "180+2"]
[Date "2023.07.25"]
[WhiteClock "0:00:04"]
[BlackClock "0:00:04"]
[Board "81"]

1. b3 {[%clk 0:03:00]}  d5 {[%clk 0:02:58]} 2. Bb2 {[%clk 0:03:00]}  Nf6 {[%clk 0:02:59]} 3. e3 {[%clk 0:03:01]}  Bf5 {[%clk 0:02:59]} 4. Nf3 {[%clk 0:03:00]}  e6 {[%clk 0:02:57]} 5. Bd3 {[%clk 0:03:00]}  Bxd3 {[%clk 0:02:50]} 6. cxd3 {[%clk 0:03:01]}  Bd6 {[%clk 0:02:47]} 7. O-O {[%clk 0:03:01]}  Qe7 {[%clk 0:02:46]} 8. d4 {[%clk 0:03:01]}  O-O {[%clk 0:02:44]} 9. Nc3 {[%clk 0:03:02]}  c6 {[%clk 0:02:38]} 10. d3 {[%clk 0:03:00]}  Nbd7 {[%clk 0:02:35]} 11. Qe2 {[%clk 0:02:58]}  Ba3 {[%clk 0:02:34]} 12. e4 {[%clk 0:02:51]}  Rfc8 {[%clk 0:02:31]} 13. Rac1 {[%clk 0:02:49]}  a6 {[%clk 0:02:28]} 14. Rfd1 {[%clk 0:02:48]}  b5 {[%clk 0:02:23]} 15. Bxa3 {[%clk 0:02:45]}  Qxa3 {[%clk 0:02:22]} 16. h3 {[%clk 0:02:46]}  a5 {[%clk 0:02:17]} 17. Nb1 {[%clk 0:02:41]}  Qf8 {[%clk 0:02:09]} 18. Rc2 {[%clk 0:02:28]}  a4 {[%clk 0:02:07]} 19. Rdc1 {[%clk 0:02:28]}  axb3 {[%clk 0:02:06]} 20. axb3 {[%clk 0:02:29]}  Qb4 {[%clk 0:01:48]} 21. Nbd2 {[%clk 0:02:29]}  Ra6 {[%clk 0:01:03]} 22. Kh2 {[%clk 0:02:18]}  Qd6+ {[%clk 0:01:00]} 23. e5 {[%clk 0:02:15]}  Qb8 {[%clk 0:01:00]} 24. g4 {[%clk 0:02:10]}  Ne8 {[%clk 0:00:58]} 25. Kg2 {[%clk 0:02:10]}  Qb7 {[%clk 0:00:51]} 26. Qe3 {[%clk 0:02:06]}  Nf8 {[%clk 0:00:44]} 27. h4 {[%clk 0:02:05]}  Rca8 {[%clk 0:00:43]} 28. h5 {[%clk 0:02:05]}  b4 {[%clk 0:00:30]} 29. Nf1 {[%clk 0:01:58]}  Nd7 {[%clk 0:00:28]} 30. Ng3 {[%clk 0:01:55]}  Nb8 {[%clk 0:00:28]} 31. g5 {[%clk 0:01:50]}  Ra2 {[%clk 0:00:28]} 32. Rxa2 {[%clk 0:01:47]}  Rxa2 {[%clk 0:00:27]} 33. g6 {[%clk 0:01:43]}  h6 {[%clk 0:00:25]} 34. Qf4 {[%clk 0:01:36]}  Qe7 {[%clk 0:00:23]} 35. Nh4 {[%clk 0:01:23]}  Nc7 {[%clk 0:00:22]} 36. Qg4 {[%clk 0:01:16]}  Nb5 {[%clk 0:00:20]} 37. Rg1 {[%clk 0:00:58]}  Nc3 {[%clk 0:00:13]} 38. Kh3 {[%clk 0:00:53]}  Nd7 {[%clk 0:00:12]} 39. Nhf5 {[%clk 0:00:48]}  exf5 {[%clk 0:00:11]} 40. Nxf5 {[%clk 0:00:49]}  Qg5 {[%clk 0:00:09]} 41. gxf7+ {[%clk 0:00:40]}  Kf8 {[%clk 0:00:08]} 42. Qxg5 {[%clk 0:00:24]}  hxg5 {[%clk 0:00:09]} 43. e6 {[%clk 0:00:24]}  Nf6 {[%clk 0:00:05]} 44. Rxg5 {[%clk 0:00:23]}  Rxf2 {[%clk 0:00:04]} 45. Kg3 {[%clk 0:00:21]}  Rxf5 {[%clk 0:00:03]} 46. Rxf5 {[%clk 0:00:22]}  Ne2+ {[%clk 0:00:04]} 47. Kh4 {[%clk 0:00:14]}  Nxd4 {[%clk 0:00:04]} 48. Re5 {[%clk 0:00:14]}  Ke7 {[%clk 0:00:05]} 49. Kg5 {[%clk 0:00:12]}  Nf3+ {[%clk 0:00:05]} 50. Kf5 {[%clk 0:00:04]}  Nxe5 {[%clk 0:00:06]} 51. h6 {[%clk 0:00:04]}  Nh5 {[%clk 0:00:07]} 52. h7 {[%clk 0:00:03]}  g6+ {[%clk 0:00:07]} 53. Kg5 {[%clk 0:00:03]}  Nf3+ {[%clk 0:00:06]} 54. Kh6 {[%clk 0:00:03]}  Ng3 {[%clk 0:00:04]} 55. h8=Q {[%clk 0:00:03]}  Nf5+ {[%clk 0:00:05]} 56. Kxg6 {[%clk 0:00:03]}  N3h4+ {[%clk 0:00:05]} 57. Kh5 {[%clk 0:00:03]}  Kxe6 {[%clk 0:00:06]} 58. f8=Q {[%clk 0:00:03]}  Ng3+ {[%clk 0:00:03]} 59. Kxh4 {[%clk 0:00:02]}  Nf5+ {[%clk 0:00:04]} 60. Kg5 {[%clk 0:00:03]}  Nd4 {[%clk 0:00:04]} 61. Qhf6+ {[%clk 0:00:03]}  Kd7 {[%clk 0:00:04]} 62. Q8d8# {[%clk 0:00:04]} 1-0


[Site "https://www.chess.com"]

[Event "Titled Tuesday Blitz July 25 Late 2023"]
[White "Bettalli, Francesco"]
[Black "Santos Flores, Alberto"]
[WhiteFideId "2816453"]
[BlackFideId "3601234"]
[WhiteElo "2433"]
[BlackElo "2526"]
[Result "1-0"]
[Round "7"]
[TimeControl "180+2"]
[Date "2023.07.25"]
[WhiteClock "0:00:48"]
[BlackClock "0:00:02"]
[Board "82"]

1. e4 {[%clk 0:02:53]}  e6 {[%clk 0:03:00]} 2. d4 {[%clk 0:02:52]}  d5 {[%clk 0:02:58]} 3. Bd3 {[%clk 0:02:52]}  dxe4 {[%clk 0:02:58]} 4. Bxe4 {[%clk 0:02:53]}  Nf6 {[%clk 0:02:58]} 5. Bf3 {[%clk 0:02:54]}  Bd6 {[%clk 0:02:57]} 6. Ne2 {[%clk 0:02:53]}  O-O {[%clk 0:02:57]} 7. Nbc3 {[%clk 0:02:53]}  e5 {[%clk 0:02:57]} 8. O-O {[%clk 0:02:50]}  c6 {[%clk 0:02:55]} 9. Bg5 {[%clk 0:02:50]}  h6 {[%clk 0:02:49]} 10. Bh4 {[%clk 0:02:45]}  Nbd7 {[%clk 0:02:37]} 11. Ne4 {[%clk 0:02:34]}  Be7 {[%clk 0:02:34]} 12. dxe5 {[%clk 0:02:34]}  Nxe5 {[%clk 0:02:24]} 13. Qxd8 {[%clk 0:02:30]}  Nxf3+ {[%clk 0:02:23]} 14. gxf3 {[%clk 0:02:31]}  Rxd8 {[%clk 0:02:21]} 15. Nxf6+ {[%clk 0:02:31]}  Bxf6 {[%clk 0:02:19]} 16. Bxf6 {[%clk 0:02:32]}  gxf6 {[%clk 0:02:20]} 17. Rad1 {[%clk 0:02:32]}  Bf5 {[%clk 0:02:19]} 18. Nd4 {[%clk 0:02:30]}  Bg6 {[%clk 0:02:19]} 19. c3 {[%clk 0:02:30]}  c5 {[%clk 0:02:15]} 20. Nb3 {[%clk 0:02:28]}  b6 {[%clk 0:02:12]} 21. Rfe1 {[%clk 0:02:27]}  Kf8 {[%clk 0:02:10]} 22. Kg2 {[%clk 0:02:26]}  Bc2 {[%clk 0:02:09]} 23. Rxd8+ {[%clk 0:02:23]}  Rxd8 {[%clk 0:02:10]} 24. Re2 {[%clk 0:02:24]}  Bb1 {[%clk 0:02:01]} 25. a3 {[%clk 0:02:20]}  Ba2 {[%clk 0:02:00]} 26. Nd2 {[%clk 0:02:20]}  f5 {[%clk 0:01:50]} 27. Kg3 {[%clk 0:02:20]}  Kg7 {[%clk 0:01:47]} 28. Kf4 {[%clk 0:02:20]}  Kf6 {[%clk 0:01:47]} 29. h4 {[%clk 0:02:09]}  Rd3 {[%clk 0:01:41]} 30. Nf1 {[%clk 0:02:06]}  Bc4 {[%clk 0:01:27]} 31. Re5 {[%clk 0:01:58]}  Be6 {[%clk 0:01:15]} 32. Ne3 {[%clk 0:01:54]}  Rd2 {[%clk 0:01:15]} 33. Nxf5 {[%clk 0:01:49]}  Rxb2 {[%clk 0:01:15]} 34. Nxh6 {[%clk 0:01:48]}  Rxf2 {[%clk 0:01:14]} 35. Ng8+ {[%clk 0:01:35]}  Kg7 {[%clk 0:01:11]} 36. Rg5+ {[%clk 0:01:31]}  Kf8 {[%clk 0:01:07]} 37. Nf6 {[%clk 0:01:31]}  Ke7 {[%clk 0:01:02]} 38. Ne4 {[%clk 0:01:30]}  Ra2 {[%clk 0:00:59]} 39. h5 {[%clk 0:01:28]}  Rxa3 {[%clk 0:00:57]} 40. h6 {[%clk 0:01:28]}  Ra1 {[%clk 0:00:57]} 41. Rh5 {[%clk 0:01:28]}  Rd1 {[%clk 0:00:23]} 42. h7 {[%clk 0:01:26]}  Rd8 {[%clk 0:00:23]} 43. h8=Q {[%clk 0:01:26]}  Rxh8 {[%clk 0:00:24]} 44. Rxh8 {[%clk 0:01:26]}  Kd7 {[%clk 0:00:24]} 45. Ra8 {[%clk 0:01:25]}  a5 {[%clk 0:00:25]} 46. Ke5 {[%clk 0:01:25]}  Kc6 {[%clk 0:00:25]} 47. f4 {[%clk 0:01:23]}  Kb5 {[%clk 0:00:24]} 48. f5 {[%clk 0:01:23]}  Bb3 {[%clk 0:00:23]} 49. Nd6+ {[%clk 0:01:22]}  Kc6 {[%clk 0:00:23]} 50. f6 {[%clk 0:01:11]}  a4 {[%clk 0:00:23]} 51. c4 {[%clk 0:01:10]}  b5 {[%clk 0:00:14]} 52. cxb5+ {[%clk 0:01:09]}  Kb6 {[%clk 0:00:15]} 53. Ra6+ {[%clk 0:01:02]}  Kc7 {[%clk 0:00:14]} 54. b6+ {[%clk 0:01:00]}  Kb8 {[%clk 0:00:12]} 55. Ra7 {[%clk 0:00:49]}  c4 {[%clk 0:00:02]} 56. Rc7 {[%clk 0:00:48]} 1-0


[Site "https://www.chess.com"]

[Event "Titled Tuesday Blitz July 25 Late 2023"]
[White "Rottenwohrer Suarez, Juan"]
[Black "Pasti, Aron"]
[WhiteFideId "32068182"]
[BlackFideId "785857"]
[WhiteElo "2522"]
[BlackElo "2425"]
[Result "1-0"]
[Round "7"]
[TimeControl "180+2"]
[Date "2023.07.25"]
[WhiteClock "0:00:05"]
[BlackClock "0:00:00"]
[Board "84"]

1. e4 {[%clk 0:03:00]}  e5 {[%clk 0:03:00]} 2. Nf3 {[%clk 0:02:59]}  Nc6 {[%clk 0:03:01]} 3. d4 {[%clk 0:02:57]}  exd4 {[%clk 0:03:01]} 4. Nxd4 {[%clk 0:02:58]}  Bc5 {[%clk 0:03:01]} 5. Be3 {[%clk 0:02:56]}  Qf6 {[%clk 0:03:01]} 6. c3 {[%clk 0:02:56]}  Nge7 {[%clk 0:03:00]} 7. g3 {[%clk 0:02:48]}  O-O {[%clk 0:02:59]} 8. Bg2 {[%clk 0:02:47]}  Bb6 {[%clk 0:02:50]} 9. O-O {[%clk 0:02:44]}  d6 {[%clk 0:02:49]} 10. Na3 {[%clk 0:02:34]}  Re8 {[%clk 0:02:44]} 11. Nc4 {[%clk 0:02:27]}  Ne5 {[%clk 0:02:36]} 12. Nxb6 {[%clk 0:02:23]}  axb6 {[%clk 0:02:37]} 13. h3 {[%clk 0:02:15]}  Nc4 {[%clk 0:02:33]} 14. Bc1 {[%clk 0:02:13]}  Nc6 {[%clk 0:02:26]} 15. b3 {[%clk 0:02:05]}  N4e5 {[%clk 0:02:11]} 16. Bb2 {[%clk 0:01:59]}  Ng6 {[%clk 0:02:07]} 17. Nb5 {[%clk 0:01:42]}  Qe7 {[%clk 0:01:58]} 18. c4 {[%clk 0:01:29]}  Be6 {[%clk 0:01:54]} 19. f4 {[%clk 0:01:27]}  Bc8 {[%clk 0:01:45]} 20. f5 {[%clk 0:01:25]}  Nge5 {[%clk 0:01:42]} 21. f6 {[%clk 0:01:24]}  gxf6 {[%clk 0:01:41]} 22. Nc3 {[%clk 0:01:16]}  Be6 {[%clk 0:01:39]} 23. Qh5 {[%clk 0:01:13]}  Ng6 {[%clk 0:01:31]} 24. Rae1 {[%clk 0:01:04]}  Nce5 {[%clk 0:01:30]} 25. Nd5 {[%clk 0:00:51]}  Bxd5 {[%clk 0:01:29]} 26. exd5 {[%clk 0:00:49]}  Rxa2 {[%clk 0:01:20]} 27. Rf2 {[%clk 0:00:45]}  Qd8 {[%clk 0:01:11]} 28. Ref1 {[%clk 0:00:44]}  Kg7 {[%clk 0:00:55]} 29. Bc1 {[%clk 0:00:29]}  Rxf2 {[%clk 0:00:51]} 30. Rxf2 {[%clk 0:00:18]}  Nd3 {[%clk 0:00:47]} 31. Bh6+ {[%clk 0:00:17]}  Kg8 {[%clk 0:00:47]} 32. Rf1 {[%clk 0:00:18]}  Re1 {[%clk 0:00:46]} 33. Rxe1 {[%clk 0:00:15]}  Nxe1 {[%clk 0:00:46]} 34. Be4 {[%clk 0:00:15]}  Qa8 {[%clk 0:00:29]} 35. Qf5 {[%clk 0:00:14]}  b5 {[%clk 0:00:08]} 36. h4 {[%clk 0:00:08]}  bxc4 {[%clk 0:00:07]} 37. bxc4 {[%clk 0:00:08]}  Qa7+ {[%clk 0:00:07]} 38. Kf1 {[%clk 0:00:08]}  Qa8 {[%clk 0:00:07]} 39. Kxe1 {[%clk 0:00:07]}  Qa1+ {[%clk 0:00:07]} 40. Kf2 {[%clk 0:00:07]}  Qd4+ {[%clk 0:00:06]} 41. Kg2 {[%clk 0:00:07]}  Qb2+ {[%clk 0:00:06]} 42. Kh3 {[%clk 0:00:07]}  Nf8 {[%clk 0:00:00]} 43. Qg4+ {[%clk 0:00:05]} 1-0


[Site "https://www.chess.com"]

[Event "Titled Tuesday Blitz July 25 Late 2023"]
[White "Bilan, Danila"]
[Black "Rakitic2010"]
[WhiteFideId "24161918"]
[WhiteElo "2519"]
[BlackElo "2423"]
[Result "1-0"]
[Round "7"]
[TimeControl "180+2"]
[Date "2023.07.25"]
[WhiteClock "0:00:06"]
[BlackClock "0:00:00"]
[Board "85"]

1. d4 {[%clk 0:03:00]}  Nf6 {[%clk 0:02:59]} 2. Nf3 {[%clk 0:03:01]}  c5 {[%clk 0:02:59]} 3. e3 {[%clk 0:03:01]}  e6 {[%clk 0:02:57]} 4. Bd3 {[%clk 0:03:01]}  Nc6 {[%clk 0:02:52]} 5. c3 {[%clk 0:03:01]}  Be7 {[%clk 0:02:50]} 6. Nbd2 {[%clk 0:03:00]}  O-O {[%clk 0:02:47]} 7. O-O {[%clk 0:02:57]}  b6 {[%clk 0:02:46]} 8. e4 {[%clk 0:02:49]}  cxd4 {[%clk 0:02:42]} 9. cxd4 {[%clk 0:02:50]}  Nb4 {[%clk 0:02:42]} 10. Bb5 {[%clk 0:02:39]}  a6 {[%clk 0:02:29]} 11. Ba4 {[%clk 0:02:30]}  Bb7 {[%clk 0:02:22]} 12. Qe2 {[%clk 0:02:29]}  Rc8 {[%clk 0:02:18]} 13. e5 {[%clk 0:02:25]}  Nfd5 {[%clk 0:02:07]} 14. Ne4 {[%clk 0:02:23]}  d6 {[%clk 0:02:07]} 15. Bg5 {[%clk 0:02:09]}  Bxg5 {[%clk 0:02:02]} 16. Nfxg5 {[%clk 0:01:59]}  dxe5 {[%clk 0:02:01]} 17. dxe5 {[%clk 0:01:57]}  h6 {[%clk 0:01:53]} 18. Nh3 {[%clk 0:01:42]}  Qh4 {[%clk 0:01:47]} 19. Nd6 {[%clk 0:01:30]}  Ba8 {[%clk 0:01:29]} 20. Nxc8 {[%clk 0:01:23]}  h5 {[%clk 0:01:21]} 21. Nd6 {[%clk 0:01:13]}  f6 {[%clk 0:01:15]} 22. Qe4 {[%clk 0:01:03]}  Qxh3 {[%clk 0:00:49]} 23. gxh3 {[%clk 0:00:57]}  fxe5 {[%clk 0:00:44]} 24. f3 {[%clk 0:00:44]}  Nf4 {[%clk 0:00:33]} 25. Qxb4 {[%clk 0:00:40]}  Nxh3+ {[%clk 0:00:32]} 26. Kg2 {[%clk 0:00:39]}  Nf4+ {[%clk 0:00:30]} 27. Kg3 {[%clk 0:00:38]}  h4+ {[%clk 0:00:28]} 28. Kxh4 {[%clk 0:00:31]}  Rf6 {[%clk 0:00:26]} 29. Be8 {[%clk 0:00:22]}  Rh6+ {[%clk 0:00:18]} 30. Kg3 {[%clk 0:00:15]}  Rh3+ {[%clk 0:00:17]} 31. Kg4 {[%clk 0:00:16]}  Rxh2 {[%clk 0:00:17]} 32. Ne4 {[%clk 0:00:13]}  Ne2 {[%clk 0:00:09]} 33. Rg1 {[%clk 0:00:09]}  Nd4 {[%clk 0:00:06]} 34. Qe7 {[%clk 0:00:07]}  Nf5 {[%clk 0:00:02]} 35. Qxe6+ {[%clk 0:00:07]}  Kh8 {[%clk 0:00:01]} 36. Qxf5 {[%clk 0:00:07]}  Bd5 {[%clk 0:00:00]} 37. Qxe5 {[%clk 0:00:06]} 1-0


[Site "https://www.chess.com"]

[Event "Titled Tuesday Blitz July 25 Late 2023"]
[White "Gasparyan, David"]
[Black "Willy, Stephen"]
[WhiteFideId "13311980"]
[BlackFideId "30981468"]
[WhiteElo "2516"]
[BlackElo "2422"]
[Result "1-0"]
[Round "7"]
[TimeControl "180+2"]
[Date "2023.07.25"]
[WhiteClock "0:00:47"]
[BlackClock "0:00:02"]
[Board "86"]

1. d4 {[%clk 0:03:00]}  d6 {[%clk 0:02:59]} 2. c4 {[%clk 0:02:59]}  e5 {[%clk 0:02:59]} 3. Nf3 {[%clk 0:02:58]}  e4 {[%clk 0:02:58]} 4. Nfd2 {[%clk 0:02:58]}  f5 {[%clk 0:02:59]} 5. e3 {[%clk 0:02:58]}  Nf6 {[%clk 0:02:59]} 6. Nc3 {[%clk 0:02:58]}  Be7 {[%clk 0:02:57]} 7. f3 {[%clk 0:02:53]}  exf3 {[%clk 0:02:49]} 8. Qxf3 {[%clk 0:02:53]}  O-O {[%clk 0:02:48]} 9. Bd3 {[%clk 0:02:53]}  g6 {[%clk 0:02:40]} 10. O-O {[%clk 0:02:48]}  c5 {[%clk 0:02:37]} 11. d5 {[%clk 0:02:45]}  Nbd7 {[%clk 0:02:37]} 12. Bc2 {[%clk 0:02:41]}  Ne5 {[%clk 0:02:36]} 13. Qd1 {[%clk 0:02:38]}  a6 {[%clk 0:02:29]} 14. a4 {[%clk 0:02:35]}  Rb8 {[%clk 0:02:28]} 15. a5 {[%clk 0:02:35]}  b5 {[%clk 0:02:24]} 16. axb6 {[%clk 0:02:34]}  Qxb6 {[%clk 0:02:23]} 17. Ne2 {[%clk 0:02:28]}  Nfg4 {[%clk 0:02:20]} 18. Ra3 {[%clk 0:02:21]}  Bg5 {[%clk 0:02:16]} 19. Nf4 {[%clk 0:02:20]}  Re8 {[%clk 0:02:09]} 20. h3 {[%clk 0:02:18]}  Nf6 {[%clk 0:02:06]} 21. b3 {[%clk 0:02:03]}  a5 {[%clk 0:01:50]} 22. Nf3 {[%clk 0:01:57]}  Bh6 {[%clk 0:01:41]} 23. Bd2 {[%clk 0:01:49]}  Ra8 {[%clk 0:01:31]} 24. Qa1 {[%clk 0:01:46]}  a4 {[%clk 0:01:09]} 25. Rxa4 {[%clk 0:01:42]}  Rxa4 {[%clk 0:01:08]} 26. Qxa4 {[%clk 0:01:42]}  Bd7 {[%clk 0:01:08]} 27. Qa1 {[%clk 0:01:35]}  Bg7 {[%clk 0:00:59]} 28. Bc3 {[%clk 0:01:33]}  Nxf3+ {[%clk 0:00:55]} 29. Rxf3 {[%clk 0:01:32]}  Rf8 {[%clk 0:00:42]} 30. Ne6 {[%clk 0:01:11]}  Bxe6 {[%clk 0:00:40]} 31. dxe6 {[%clk 0:01:12]}  Qc6 {[%clk 0:00:32]} 32. e4 {[%clk 0:01:09]}  Ra8 {[%clk 0:00:22]} 33. Qb2 {[%clk 0:01:03]}  fxe4 {[%clk 0:00:16]} 34. Rxf6 {[%clk 0:01:02]}  Bxf6 {[%clk 0:00:16]} 35. Bxf6 {[%clk 0:01:02]}  Re8 {[%clk 0:00:10]} 36. e7 {[%clk 0:01:00]}  d5 {[%clk 0:00:07]} 37. cxd5 {[%clk 0:00:58]}  Qxd5 {[%clk 0:00:08]} 38. Qc3 {[%clk 0:00:56]}  Kf7 {[%clk 0:00:08]} 39. Bh4 {[%clk 0:00:50]}  g5 {[%clk 0:00:06]} 40. Bf2 {[%clk 0:00:49]}  Rxe7 {[%clk 0:00:06]} 41. Bxc5 {[%clk 0:00:48]}  Rc7 {[%clk 0:00:06]} 42. b4 {[%clk 0:00:48]}  Kg6 {[%clk 0:00:05]} 43. Qe3 {[%clk 0:00:48]}  Rd7 {[%clk 0:00:02]} 44. Bxe4+ {[%clk 0:00:47]} 1-0


[Site "https://www.chess.com"]

[Event "Titled Tuesday Blitz July 25 Late 2023"]
[White "Terletsky, Oleg"]
[Black "Cooklev, Steven"]
[WhiteFideId "14116774"]
[BlackFideId "2050552"]
[WhiteElo "2511"]
[BlackElo "2385"]
[Result "1-0"]
[Round "7"]
[TimeControl "180+2"]
[Date "2023.07.25"]
[WhiteClock "0:00:32"]
[BlackClock "0:00:20"]
[Board "89"]

1. e4 {[%clk 0:02:54]}  c5 {[%clk 0:02:59]} 2. Nf3 {[%clk 0:02:54]}  Nc6 {[%clk 0:02:59]} 3. d4 {[%clk 0:02:54]}  cxd4 {[%clk 0:03:00]} 4. Nxd4 {[%clk 0:02:55]}  e5 {[%clk 0:03:01]} 5. Nb5 {[%clk 0:02:55]}  d6 {[%clk 0:03:01]} 6. N1c3 {[%clk 0:02:54]}  a6 {[%clk 0:03:01]} 7. Na3 {[%clk 0:02:55]}  Be7 {[%clk 0:03:01]} 8. Nc4 {[%clk 0:02:53]}  b5 {[%clk 0:03:00]} 9. Ne3 {[%clk 0:02:50]}  Nf6 {[%clk 0:03:00]} 10. g3 {[%clk 0:02:48]}  h5 {[%clk 0:02:59]} 11. h3 {[%clk 0:02:47]}  Nd4 {[%clk 0:02:42]} 12. Bg2 {[%clk 0:02:44]}  Be6 {[%clk 0:02:31]} 13. Ncd5 {[%clk 0:02:37]}  Nxd5 {[%clk 0:01:40]} 14. exd5 {[%clk 0:02:37]}  Bd7 {[%clk 0:01:34]} 15. c3 {[%clk 0:01:24]}  Nf5 {[%clk 0:01:34]} 16. Nxf5 {[%clk 0:01:25]}  Bxf5 {[%clk 0:01:35]} 17. O-O {[%clk 0:01:25]}  Qd7 {[%clk 0:01:30]} 18. Kh2 {[%clk 0:01:24]}  O-O-O {[%clk 0:01:21]} 19. a4 {[%clk 0:01:23]}  b4 {[%clk 0:01:14]} 20. cxb4 {[%clk 0:01:22]}  Qb7 {[%clk 0:00:39]} 21. b5 {[%clk 0:01:07]}  Kd7 {[%clk 0:00:36]} 22. bxa6 {[%clk 0:01:00]}  Qxa6 {[%clk 0:00:37]} 23. b4 {[%clk 0:01:00]}  Qc4 {[%clk 0:00:24]} 24. b5 {[%clk 0:00:35]}  Ra8 {[%clk 0:00:24]} 25. Be3 {[%clk 0:00:33]}  Rxa4 {[%clk 0:00:20]} 26. Rxa4 {[%clk 0:00:32]} 1-0


[Site "https://www.chess.com"]